bitfinex/quotes_SOLUSD_20220129
["timestamp","ask_amount","ask_price","bid_price","bid_amount"]
[1643464040539,61.12,98.677,98.493,2.79432738]
[1643464040739,61.12,98.669,98.52,112.8]
[1643464040941,15.228,98.63,98.521,41.18722469]
[1643464041140,119.889,98.666,98.521,43.98155207]
[1643464041442,0.25,98.629,98.522,104.59432738]
[1643464041741,0.25,98.629,98.531,6.0]
[1643464041940,0.25,98.629,98.521,17.24097642]
[1643464042141,0.25,98.629,98.52,112.8]
[1643464042447,12.4,98.65,98.5,17.24097642]
[1643464042641,12.4,98.65,98.51,6.0]
[1643464042642,0.25,98.639,98.51,6.0]
[1643464042845,47.1974,98.649,98.51,6.0]
[1643464043043,6.0,98.639,98.516,6.0]
[1643464043242,6.0,98.639,98.51,6.0]
[1643464043542,47.1974,98.649,98.521,112.8]
[1643464043743,47.1974,98.649,98.522,102.10023531]
[1643464043944,23.8875,98.649,98.531,6.0]
[1643464044141,23.5875,98.649,98.558,44.24366792]
[1643464044344,23.5875,98.649,98.559,0.25]
[1643464044644,23.5875,98.649,98.568,6.0]
[1643464044845,23.5875,98.649,98.558,44.24366792]
[1643464045043,23.5875,98.649,98.557,112.8]
[1643464045946,0.25,98.648,98.558,45.58252814]
[1643464046142,0.25,98.648,98.567,6.0]
[1643464046343,23.5875,98.649,98.568,6.0]
[1643464046547,23.5875,98.649,98.569,6.0]
[1643464046744,23.5875,98.649,98.57,114.2]
[1643464047144,23.5875,98.649,98.581,134.65995659]
[1643464047445,23.5875,98.649,98.582,3.02826007]
[1643464047647,23.5875,98.649,98.592,6.0]
[1643464047843,23.5875,98.649,98.582,2.77826007]
[1643464048144,23.5875,98.649,98.592,6.0]
[1643464048345,0.25,98.648,98.57,10.05129265]
[1643464048545,23.5875,98.649,98.568,2.77826007]
[1643464048744,23.5875,98.649,98.578,6.0]
[1643464048944,23.5875,98.649,98.572,101.8]
[1643464049146,23.5875,98.649,98.581,6.0]
[1643464049344,23.5875,98.649,98.582,108.05]
[1643464049544,15.213,98.71,98.592,6.0]
[1643464049743,77.3319,98.697,98.592,6.0]
[1643464049946,77.3319,98.697,98.6,6.0]
[1643464050344,77.3319,98.697,98.6,8.77815152]
[1643464050545,77.3319,98.697,98.61,6.0]
[1643464050748,77.3319,98.697,98.585,2.77815152]
[1643464050949,77.3319,98.697,98.61,6.0]
[1643464051147,77.3319,98.697,98.61,8.77815152]
[1643464051348,77.3319,98.697,98.595,2.77815152]
[1643464051751,77.3319,98.697,98.58,15.21]
[1643464052150,77.3319,98.697,98.581,41.1627928]
[1643464052349,0.25,98.686,98.581,2.77815152]
[1643464052549,0.25,98.686,98.582,2.77815152]
[1643464052750,77.3319,98.697,98.582,2.77815152]
[1643464052751,1.41286792,98.782,98.631,0.3131608]
[1643464052950,72.3087,98.79,98.64,12.4]
[1643464053351,72.3087,98.79,98.65,6.0]
[1643464053752,15.205,98.77,98.651,6.0]
[1643464054053,15.205,98.77,98.625,18.1798653]
[1643464054054,12.4,98.76,98.628,2.7780857]
[1643464054255,12.4,98.76,98.57,12.4]
[1643464054256,85.7377,98.759,98.57,12.4]
[1643464054453,84.5341,98.758,98.57,12.4]
[1643464054653,84.7841,98.758,98.58,6.0]
[1643464054952,15.212,98.74,98.581,36.0876538]
[1643464055153,69.6001,98.739,98.59,12.4]
[1643464055353,6.0,98.73,98.591,6.0]
[1643464055554,69.8501,98.739,98.6,6.0]
[1643464055757,69.8501,98.739,98.61,12.4]
[1643464055963,69.6001,98.739,98.61,12.4]
[1643464056154,69.6001,98.739,98.62,6.0]
[1643464056354,69.6001,98.739,98.63,12.4]
[1643464056556,69.6001,98.739,98.64,6.0]
[1643464056758,69.6001,98.739,98.621,2.7780857]
[1643464056955,69.6001,98.739,98.611,18.1798653]
[1643464057161,69.6001,98.739,98.631,6.0]
[1643464057356,69.6001,98.739,98.632,102.05]
[1643464057558,69.6001,98.739,98.642,6.0]
[1643464058159,69.6001,98.739,98.633,2.7780857]
[1643464058379,69.6001,98.739,98.643,6.0]
[1643464058785,69.6001,98.739,98.644,0.25]
[1643464058980,69.6001,98.739,98.643,6.0]
[1643464059383,69.6001,98.739,98.644,0.25]
[1643464059581,69.6001,98.739,98.649,6.0]
[1643464060180,69.6001,98.739,98.638,38.37900518]
[1643464060582,69.6001,98.739,98.648,6.0]
[1643464060780,0.25,98.738,98.649,0.25]
[1643464060982,0.25,98.738,98.649,6.25]
[1643464061180,0.25,98.738,98.649,9.0239784]
[1643464061384,0.25,98.738,98.65,2.7739784]
[1643464061580,0.25,98.738,98.638,38.37900518]
[1643464061984,0.25,98.738,98.648,6.0]
[1643464062585,0.25,98.738,98.64,6.0]
[1643464062783,0.25,98.738,98.628,107.8]
[1643464062985,0.25,98.738,98.628,6.0]
[1643464063184,0.25,98.738,98.629,3.01573974]
[1643464063483,69.6001,98.739,98.63,51.7159317]
[1643464063683,69.6001,98.739,98.639,6.0]
[1643464063889,69.6001,98.739,98.64,6.25]
[1643464064085,69.6001,98.739,98.631,104.56573974]
[1643464064384,69.6001,98.739,98.632,3.01573974]
[1643464064589,69.6001,98.739,98.642,6.0]
[1643464064784,69.6001,98.739,98.643,102.05]
[1643464064984,69.6001,98.739,98.643,3.01573974]
[1643464065184,0.25,98.738,98.643,2.76573974]
[1643464065384,0.25,98.738,98.633,2.76573974]
[1643464066486,0.25,98.738,98.634,0.25]
[1643464066886,0.25,98.738,98.635,2.76573974]
[1643464067090,15.211,98.73,98.635,2.76573974]
[1643464067286,15.211,98.73,98.601,101.8]
[1643464067287,0.25,98.729,98.607,2.76573974]
[1643464067487,6.0,98.72,98.601,101.8]
[1643464067688,23.5879,98.719,98.601,101.8]
[1643464067895,23.8379,98.719,98.601,101.8]
[1643464068487,23.8379,98.719,98.611,6.0]
[1643464068888,23.8379,98.719,98.612,0.25]
[1643464069088,15.214,98.71,98.612,0.25]
[1643464069291,0.25,98.709,98.612,0.25]
[1643464069691,23.5879,98.719,98.613,2.76573974]
[1643464069890,23.5879,98.719,98.615,101.8]
[1643464070092,23.5879,98.719,98.625,6.0]
[1643464070288,23.5879,98.719,98.62,12.4]
[1643464070492,15.213,98.71,98.615,101.8]
[1643464071089,23.5879,98.719,98.616,2.76573974]
[1643464071300,0.25,98.718,98.616,2.76573974]
[1643464072193,46.719,98.739,98.617,18.1798653]
[1643464072393,46.719,98.739,98.631,40.64717384]
[1643464072591,0.25,98.738,98.641,6.0]
[1643464072792,61.37,98.738,98.618,104.56573974]
[1643464072993,61.12,98.737,98.618,104.56573974]
[1643464073194,61.12,98.737,98.619,2.76573974]
[1643464073396,24.4009,98.738,98.618,101.8]
[1643464073594,24.4009,98.738,98.628,6.0]
[1643464073794,24.4009,98.738,98.629,144.73895332]
[1643464073996,24.4009,98.738,98.631,101.8]
[1643464074395,24.4009,98.738,98.632,0.25]
[1643464074597,24.4009,98.738,98.631,101.8]
[1643464074800,24.4009,98.738,98.641,6.0]
[1643464074995,24.4009,98.738,98.642,107.8]
[1643464075196,24.4009,98.738,98.642,110.81573974]
[1643464075395,24.4009,98.738,98.643,0.25]
[1643464075696,24.4009,98.738,98.645,101.8]
[1643464075897,24.4009,98.738,98.646,0.25]
[1643464076195,0.25,98.737,98.655,6.0]
[1643464076395,0.25,98.737,98.656,0.25]
[1643464076694,0.25,98.737,98.656,2.76573974]
[1643464076896,0.25,98.737,98.635,2.76573974]
[1643464077399,0.25,98.737,98.62,27.604]
[1643464077600,1.41286792,98.749,98.63,6.0]
[1643464077797,1.41286792,98.75,98.64,12.4]
[1643464077995,1.41286792,98.774,98.64,13.76482721]
[1643464078196,1.41286792,98.788,98.653,1.36482721]
[1643464078398,1.41286792,98.79,98.661,101.8]
[1643464078598,15.201,98.79,98.672,101.8]
[1643464078796,15.201,98.79,98.673,33.08676126]
[1643464078997,15.201,98.79,98.683,6.0]
[1643464079197,6.0,98.78,98.673,35.852501]
[1643464079397,1.41286792,98.777,98.65,12.4]
[1643464079596,1.41286792,98.777,98.664,6.0]
[1643464079798,1.41286792,98.774,98.664,6.0]
[1643464080000,1.41286792,98.775,98.658,6.0]
[1643464080199,0.25,98.773,98.658,6.0]
[1643464080401,15.204,98.77,98.659,44.05272155]
[1643464080600,16.61686792,98.77,98.659,44.05272155]
[1643464080800,0.25,98.769,98.659,44.05272155]
[1643464081203,0.25,98.769,98.66,2.76573974]
[1643464081603,15.204,98.77,98.66,2.76573974]
[1643464081805,15.204,98.77,98.65,12.4]
[1643464082003,15.204,98.77,98.66,6.0]
[1643464082203,16.61686792,98.77,98.66,6.0]
[1643464082607,1.41286792,98.767,98.651,2.76573974]
[1643464082805,0.25,98.766,98.651,2.76573974]
[1643464083207,1.41286792,98.764,98.652,41.5042193]
[1643464083405,24.3919,98.763,98.652,41.5042193]
[1643464083606,24.3919,98.763,98.653,2.76573974]
[1643464083805,24.3919,98.763,98.653,3.01573974]
[1643464084007,24.3919,98.763,98.652,41.5042193]
[1643464084205,24.3919,98.763,98.654,2.76573974]
[1643464084631,61.12,98.762,98.642,2.76573974]
[1643464084829,61.12,98.762,98.629,1.36482721]
[1643464084830,61.12,98.752,98.624,2.76573974]
[1643464085032,6.0,98.745,98.634,6.0]
[1643464085334,61.12,98.739,98.621,2.76573974]
[1643464085532,6.0,98.729,98.621,2.76573974]
[1643464085830,49.5737,98.728,98.61,112.8]
[1643464086031,49.5737,98.728,98.611,104.56573974]
[1643464086231,49.3237,98.728,98.611,104.56573974]
[1643464086432,49.3237,98.728,98.612,42.67027695]
[1643464086635,49.3237,98.728,98.622,6.0]
[1643464086831,49.3237,98.728,98.623,101.8]
[1643464087033,1.41286792,98.75,98.629,0.31794701]
[1643464087233,1.41286792,98.762,98.641,101.8]
[1643464087433,1.41286792,98.77,98.643,101.8]
[1643464087635,47.262,98.807,98.643,101.8]
[1643464087636,1.41286792,98.774,98.643,101.8]
[1643464087837,1.41286792,98.77,98.643,101.8]
[1643464088037,1.41286792,98.761,98.653,6.0]
[1643464088235,1.41286792,98.763,98.653,6.0]
[1643464088436,1.41286792,98.761,98.654,101.8]
[1643464088636,1.41286792,98.767,98.664,6.0]
[1643464088836,47.847,98.768,98.665,45.61746155]
[1643464089236,0.25,98.75,98.666,0.25]
[1643464089937,0.25,98.75,98.665,45.61746155]
[1643464090140,0.25,98.75,98.666,101.8]
[1643464090839,0.25,98.75,98.667,0.25]
[1643464091037,0.25,98.75,98.664,6.0]
[1643464091238,0.25,98.75,98.65,6.0]
[1643464091437,0.25,98.75,98.629,2.75783502]
[1643464091438,24.955,98.75,98.629,2.75783502]
[1643464091640,61.12,98.749,98.621,101.8]
[1643464091840,61.12,98.739,98.631,6.0]
[1643464092039,61.12,98.739,98.621,101.8]
[1643464092040,6.0,98.729,98.606,1.36482721]
[1643464092241,61.37,98.728,98.594,47.93570433]
[1643464092443,67.12,98.727,98.594,46.57087712]
[1643464092641,6.0,98.718,98.609,38.37971741]
[1643464092848,0.25,98.728,98.611,104.56623354]
[1643464092849,47.8554,98.726,98.611,104.56623354]
[1643464093051,47.8554,98.726,98.611,124.04609884]
[1643464093241,47.8554,98.726,98.621,101.8]
[1643464093642,0.25,98.725,98.622,2.76623354]
[1643464094043,0.25,98.725,98.62,12.4]
[1643464094641,47.8554,98.726,98.621,22.49609884]
[1643464094941,47.8554,98.726,98.631,38.85016287]
[1643464095144,47.8554,98.726,98.64,12.4]
[1643464095344,1.41286792,98.77,98.641,102.05]
[1643464095553,1.41286792,98.777,98.651,6.0]
[1643464095742,1.41286792,98.777,98.652,44.89069072]
[1643464095945,1.41286792,98.776,98.652,45.14069072]
[1643464096144,61.12,98.768,98.652,45.14069072]
[1643464096344,24.7543,98.768,98.652,45.14069072]
[1643464096544,24.7543,98.768,98.662,6.0]
[1643464096745,24.7543,98.768,98.663,0.25]
[1643464097244,24.7543,98.768,98.671,42.30017775]
[1643464097449,61.12,98.767,98.671,42.30017775]
[1643464097646,61.12,98.767,98.66,12.4]
[1643464097846,0.25,98.75,98.66,12.4]
[1643464098246,0.25,98.75,98.637,101.8]
[1643464098448,22.8854,98.75,98.64,12.4]
[1643464098646,22.8854,98.75,98.641,138.59407101]
[1643464098848,22.8854,98.75,98.641,37.04407101]
[1643464099049,22.8854,98.75,98.641,2.76607426]
[1643464099347,61.12,98.747,98.621,1.36482721]
[1643464099547,6.0,98.737,98.623,2.76607426]
[1643464099754,0.25,98.736,98.633,6.0]
[1643464099951,0.25,98.736,98.634,44.15061838]
[1643464100149,0.25,98.736,98.644,6.0]
[1643464100351,0.25,98.736,98.645,0.25]
[1643464100552,0.25,98.736,98.645,6.25]
[1643464100751,0.25,98.736,98.645,9.01607426]
[1643464100950,0.25,98.749,98.646,2.76607426]
[1643464101152,0.25,98.749,98.647,6.0]
[1643464101350,0.25,98.749,98.656,6.0]
[1643464102250,61.37,98.749,98.656,6.0]
[1643464102450,1.41286792,98.747,98.656,6.0]
[1643464102751,0.25,98.746,98.656,6.0]
[1643464102950,61.12,98.739,98.631,6.0]
[1643464103152,6.0,98.739,98.634,6.0]
[1643464103376,0.25,98.738,98.635,0.25]
[1643464103550,1.41286792,98.745,98.632,0.25]
[1643464103751,1.41286792,98.748,98.635,2.76607426]
[1643464103951,15.212,98.73,98.632,44.70557054]
[1643464104150,15.212,98.73,98.629,6.0]
[1643464104151,46.9574,98.729,98.629,6.0]
[1643464104351,46.9574,98.729,98.63,0.25]
[1643464104951,0.25,98.728,98.63,0.25]
[1643464105152,46.9574,98.729,98.631,2.75785167]
[1643464105351,46.9574,98.729,98.632,0.25]
[1643464105552,46.9574,98.729,98.642,45.81100941]
[1643464105855,15.208,98.75,98.643,0.25]
[1643464106152,1.41286792,98.767,98.652,6.0]
[1643464106353,1.41286792,98.767,98.661,147.78052936]
[1643464106553,45.7075,98.768,98.671,6.0]
[1643464106759,45.7075,98.768,98.672,0.25]
[1643464107054,45.7075,98.768,98.662,2.75785167]
[1643464107254,45.7075,98.768,98.663,0.25]
[1643464107856,0.25,98.767,98.663,0.25]
[1643464108256,15.205,98.77,98.663,39.78946807]
[1643464108655,15.205,98.77,98.673,6.0]
[1643464108858,15.205,98.77,98.674,0.25]
[1643464109060,15.205,98.77,98.67,12.4]
[1643464109255,15.205,98.77,98.671,0.25]
[1643464109656,24.6812,98.769,98.671,0.25]
[1643464110258,24.6812,98.769,98.671,102.05]
[1643464110456,24.6812,98.769,98.672,2.7529926]
[1643464110885,24.6812,98.769,98.673,0.25]
[1643464111061,24.6812,98.769,98.682,6.0]
[1643464111260,24.4312,98.769,98.682,6.0]
[1643464111858,1.41286792,98.767,98.68,6.0]
[1643464112060,6.0,98.757,98.638,1.36482721]
[1643464112359,47.7893,98.756,98.648,6.0]
[1643464112558,48.0393,98.756,98.654,37.36411801]
[1643464112760,48.0393,98.756,98.655,0.25]
[1643464113261,1.41286792,98.755,98.655,0.25]
[1643464113462,1.66286792,98.754,98.648,6.0]
[1643464113663,1.41286792,98.745,98.622,1.36482721]
[1643464113960,1.41286792,98.733,98.611,1.36482721]
[1643464114161,1.41286792,98.73,98.607,1.36482721]
[1643464114360,24.3264,98.732,98.615,1.36482721]
[1643464114361,15.213,98.72,98.615,1.36482721]
[1643464114561,15.213,98.72,98.617,1.36482721]
[1643464114764,0.25,98.719,98.617,1.36482721]
[1643464114961,1.0,98.73,98.628,38.23597743]
[1643464115162,1.0,98.73,98.638,6.0]
[1643464115362,1.0,98.73,98.639,0.25]
[1643464115765,15.1666,98.814,98.64,79.34104715]
[1643464115971,0.32242828,99.016,98.64,79.34104715]
[1643464115972,1.40834835,98.762,98.641,1.36482721]
[1643464116169,5.10168663,98.8,98.689,0.31476657]
[1643464116365,5.10168663,98.8,98.701,45.81456776]
[1643464116567,2.81670479,98.825,98.701,45.81456776]
[1643464116766,2.28498184,98.827,98.702,13.48805455]
[1643464116965,10.56442756,98.824,98.702,13.48805455]
[1643464117369,10.56442756,98.828,98.7,12.4]
[1643464117569,63.40030392,98.827,98.666,2.7697925]
[1643464117870,2.81670479,98.818,98.678,419.80175345]
[1643464118070,61.12,98.807,98.678,419.80175345]
[1643464118271,61.12,98.805,98.678,419.80175345]
[1643464118501,67.12,98.797,98.678,419.80175345]
[1643464118704,6.0,98.795,98.678,419.80175345]
[1643464118902,61.37,98.794,98.678,419.80175345]
[1643464119101,61.12,98.779,98.678,419.80175345]
[1643464119303,0.25,98.778,98.678,419.80175345]
[1643464119503,61.12,98.768,98.678,419.80175345]
[1643464119702,61.12,98.759,98.617,373.12596905]
[1643464119903,12.4,98.76,98.621,44.21579738]
[1643464119904,61.12,98.757,98.621,44.21579738]
[1643464120104,61.12,98.746,98.617,373.12596905]
[1643464120303,61.12,98.729,98.617,373.12596905]
[1643464120504,6.0,98.719,98.617,373.12596905]
[1643464120906,6.0,98.716,98.617,373.12596905]
[1643464121102,6.0,98.708,98.617,373.12596905]
[1643464121304,0.25,98.707,98.617,373.12596905]
[1643464121502,6.0,98.705,98.617,373.12596905]
[1643464121905,61.37,98.704,98.59,12.4]
[1643464122104,61.12,98.699,98.6,6.0]
[1643464122303,6.0,98.689,98.591,3.00668076]
[1643464122505,61.12,98.687,98.6,2.74359498]
[1643464122809,102.05,98.686,98.57,12.4]
[1643464123004,102.05,98.686,98.567,112.8]
[1643464123005,6.0,98.676,98.567,112.8]
[1643464123205,23.4654,98.675,98.567,112.8]
[1643464123405,6.0,98.667,98.567,112.8]
[1643464123604,15.222,98.66,98.567,112.8]
[1643464123808,0.25,98.659,98.568,46.5041488]
[1643464124008,0.25,98.659,98.568,49.24774378]
[1643464124208,0.25,98.659,98.569,2.74359498]
[1643464124605,23.4654,98.675,98.569,104.54359498]
[1643464124811,15.217,98.71,98.579,6.0]
[1643464125006,70.1147,98.769,98.605,0.3246035]
[1643464125306,70.1147,98.769,98.62,12.4]
[1643464125307,22.6522,98.743,98.62,12.4]
[1643464125505,22.6522,98.743,98.63,6.0]
[1643464125705,22.6522,98.743,98.64,12.4]
[1643464125909,61.12,98.742,98.621,2.74230407]
[1643464126108,6.0,98.732,98.621,2.74230407]
[1643464126309,61.37,98.731,98.601,2.74230407]
[1643464126513,6.0,98.721,98.6,12.4]
[1643464126711,24.2753,98.72,98.61,6.0]
[1643464127009,24.5253,98.72,98.62,12.4]
[1643464127209,24.2753,98.72,98.621,41.83567927]
[1643464127610,1.1,98.731,98.622,0.25]
[1643464127908,23.7396,98.769,98.631,6.0]
[1643464127909,47.6418,98.768,98.631,6.0]
[1643464128109,61.12,98.757,98.64,12.4]
[1643464128312,61.12,98.757,98.641,41.33445144]
[1643464128513,6.0,98.747,98.641,41.33445144]
[1643464129016,0.25,98.746,98.614,2.74583333]
[1643464129211,24.484,98.746,98.62,12.4]
[1643464129412,24.484,98.746,98.624,6.0]
[1643464129637,6.0,98.736,98.63,6.0]
[1643464130011,24.484,98.746,98.631,43.24406724]
[1643464130211,24.8587,98.768,98.631,52.71406724]
[1643464130411,24.8587,98.768,98.641,6.0]
[1643464130412,15.207,98.76,98.641,6.0]
[1643464130618,61.12,98.759,98.64,12.4]
[1643464130813,61.12,98.749,98.64,12.4]
[1643464131013,61.12,98.747,98.64,12.4]
[1643464131213,61.12,98.738,98.64,12.4]
[1643464131415,67.12,98.737,98.631,43.24406724]
[1643464131616,67.12,98.737,98.62,12.4]
[1643464131617,61.12,98.729,98.62,12.4]
[1643464131816,67.12,98.727,98.61,12.4]
[1643464132014,61.12,98.727,98.61,12.4]
[1643464132214,0.25,98.726,98.61,12.4]
[1643464132415,6.0,98.717,98.61,12.4]
[1643464132814,0.25,98.716,98.61,12.4]
[1643464133015,15.216,98.71,98.61,12.4]
[1643464133416,0.25,98.709,98.61,12.4]
[1643464133816,23.3702,98.709,98.61,12.4]
[1643464134119,61.12,98.708,98.61,12.4]
[1643464134416,61.12,98.699,98.57,9.98083233]
[1643464134617,61.12,98.688,98.58,6.0]
[1643464134817,0.25,98.687,98.565,6.0]
[1643464135017,6.25,98.687,98.57,6.0]
[1643464135419,6.25,98.687,98.577,6.0]
[1643464135819,6.25,98.687,98.578,0.25]
[1643464136221,0.25,98.687,98.578,0.25]
[1643464137023,62.47,98.687,98.578,0.25]
[1643464137244,15.22,98.68,98.578,0.25]
[1643464137643,15.22,98.68,98.567,35.12464936]
[1643464137644,6.0,98.67,98.567,35.12464936]
[1643464137844,24.8031,98.669,98.567,35.12464936]
[1643464138144,6.0,98.659,98.567,35.12464936]
[1643464138444,6.0,98.659,98.565,112.8]
[1643464138445,0.25,98.658,98.565,112.8]
[1643464138845,6.0,98.65,98.565,112.8]
[1643464139045,1.35,98.658,98.565,112.8]
[1643464139247,6.0,98.65,98.566,34.35129555]
[1643464139448,1.35,98.658,98.566,34.35129555]
[1643464139647,0.25,98.649,98.566,34.35129555]
[1643464139850,1.1,98.658,98.566,37.08895565]
[1643464140047,1.1,98.658,98.567,0.25]
[1643464140249,1.1,98.658,98.566,37.08895565]
[1643464140447,1.1,98.658,98.568,2.7376601]
[1643464141049,61.12,98.677,98.568,2.7376601]
[1643464141759,61.37,98.668,98.568,2.7376601]
[1643464141950,162.92,98.667,98.568,2.7376601]
[1643464142351,0.25,98.666,98.568,2.7376601]
[1643464142548,0.25,98.666,98.569,0.25]
[1643464142749,0.25,98.666,98.578,6.0]
[1643464143250,27.617,98.7,98.579,2.9876601]
[1643464143450,61.12,98.727,98.622,0.32398408]
[1643464143650,61.12,98.727,98.607,43.27468932]
[1643464143851,61.12,98.727,98.616,6.0]
[1643464144053,61.12,98.727,98.607,46.26234942]
[1643464144450,61.12,98.727,98.617,2.7376601]
[1643464144650,15.213,98.74,98.617,8.7376601]
[1643464144851,61.12,98.738,98.617,8.7376601]
[1643464145052,61.12,98.738,98.607,43.27468932]
[1643464145252,61.12,98.738,98.608,0.25]
[1643464145452,61.12,98.738,98.607,145.07468932]
[1643464145854,61.12,98.738,98.609,2.7376601]
[1643464146052,6.0,98.728,98.609,2.7376601]
[1643464146253,6.0,98.728,98.61,0.25]
[1643464146653,6.0,98.728,98.607,145.07468932]
[1643464146856,82.30281456,98.727,98.619,6.0]
[1643464147052,82.30281456,98.727,98.607,145.07468932]
[1643464147253,6.0,98.728,98.629,0.32325088]
[1643464147652,6.0,98.73,98.64,12.4]
[1643464148052,21.17973333,98.756,98.641,33.00706213]
[1643464148253,11.12,98.754,98.64,12.4]
[1643464148454,6.0,98.744,98.618,2.7376601]
[1643464148653,6.0,98.744,98.61,12.4]
[1643464148854,6.0,98.74,98.61,12.4]
[1643464149053,6.0,98.74,98.6,2.7376601]
[1643464149054,15.214,98.72,98.6,2.7376601]
[1643464149253,15.214,98.72,98.585,11.15238934]
[1643464149254,24.9896,98.719,98.611,42.93517805]
[1643464149457,6.0,98.71,98.611,42.93517805]
[1643464149652,6.0,98.709,98.611,42.93517805]
[1643464150055,0.25,98.708,98.611,42.93517805]
[1643464151054,0.25,98.708,98.591,2.7299114]
[1643464152058,6.0,98.7,98.607,37.50112187]
[1643464152258,0.25,98.699,98.591,2.7299114]
[1643464153059,6.0,98.7,98.591,2.7299114]
[1643464153257,1.1,98.699,98.607,36.61253335]
[1643464153658,1.1,98.699,98.608,13.89069662]
[1643464153859,1.1,98.699,98.617,6.0]
[1643464154057,1.1,98.699,98.62,6.0]
[1643464154258,96.2167,98.739,98.621,0.25]
[1643464154660,96.2167,98.739,98.622,2.73830728]
[1643464154858,6.0,98.722,98.623,41.359949]
[1643464155261,96.2167,98.739,98.633,6.0]
[1643464155863,6.0,98.722,98.634,6.0]
[1643464156261,6.0,98.722,98.623,41.109949]
[1643464156464,6.0,98.72,98.623,41.109949]
[1643464156660,6.0,98.72,98.599,2.7301834]
[1643464157162,6.25,98.719,98.599,2.7301834]
[1643464157561,6.0,98.71,98.577,11.15238934]
[1643464157762,6.25,98.709,98.597,35.31777004]
[1643464157962,6.0,98.701,98.597,35.31777004]
[1643464158262,6.0,98.699,98.597,35.31777004]
[1643464158562,6.0,98.699,98.577,11.15238934]
[1643464158763,6.0,98.689,98.577,11.15238934]
[1643464158962,6.0,98.689,98.578,2.7301834]
[1643464159162,6.0,98.687,98.577,11.15238934]
[1643464159363,6.0,98.68,98.56,15.1301834]
[1643464159562,6.0,98.68,98.56,52.84289972]
[1643464159766,0.25,98.679,98.56,52.84289972]
[1643464159969,6.25,98.679,98.56,52.84289972]
[1643464160368,6.25,98.679,98.56,50.11271632]
[1643464160369,15.223,98.67,98.56,50.11271632]
[1643464160566,6.0,98.66,98.56,50.11271632]
[1643464160768,0.25,98.659,98.56,50.11271632]
[1643464160966,6.25,98.659,98.56,50.11271632]
[1643464161166,6.0,98.659,98.56,50.11271632]
[1643464161369,15.223,98.67,98.561,0.25]
[1643464161567,6.0,98.66,98.582,112.8]
[1643464162468,6.0,98.659,98.582,112.8]
[1643464162871,0.25,98.658,98.582,112.8]
[1643464163474,1.25,98.659,98.582,112.8]
[1643464163674,0.25,98.658,98.582,112.8]
[1643464163871,23.4233,98.669,98.56,2.7301834]
[1643464164072,15.224,98.66,98.55,12.4]
[1643464164472,15.224,98.66,98.547,2.7301834]
[1643464164672,12.4,98.65,98.536,112.8]
[1643464165075,15.228,98.64,98.536,112.8]
[1643464165273,47.4764,98.639,98.536,112.8]
[1643464165472,53.4764,98.639,98.536,112.8]
[1643464165874,0.25,98.638,98.536,112.8]
[1643464166173,0.25,98.638,98.537,2.7301834]